[Event "*** Titled Tuesday Blitz"]
[Site "Chess.com"]
[Date "2019.06.04"]
[Round "7"]
[White "Eliwood44"]
[Black "pedroholly22"]
[Result "0-1"]
[WhiteElo "2352"]
[BlackElo "2291"]
[TimeControl "180+2"]
[EndTime "14:31:59 PDT"]
[Termination "pedroholly22 won by resignation"]

1. d4 {[%clk 0:03:01.9]} 1... Nf6 {[%clk 0:02:58.7]} 2. Nf3 {[%clk 0:03:02.5]}
2... g6 {[%clk 0:03:00.6]} 3. Nc3 {[%clk 0:03:02.3]} 3... Bg7 {[%clk 0:03:02.5]}
4. e4 {[%clk 0:03:03.3]} 4... O-O {[%clk 0:03:02.8]} 5. h3 {[%clk 0:03:01.2]}
5... c5 {[%clk 0:03:01.7]} 6. d5 {[%clk 0:02:59]} 6... d6 {[%clk 0:03:02.2]} 7.
a4 {[%clk 0:02:56.7]} 7... e6 {[%clk 0:03:03.4]} 8. Be2 {[%clk 0:02:55.4]} 8...
exd5 {[%clk 0:03:04.2]} 9. exd5 {[%clk 0:02:57.3]} 9... Re8 {[%clk 0:03:05.6]}
10. O-O {[%clk 0:02:58.2]} 10... Ne4 {[%clk 0:03:06.4]} 11. Nxe4 {[%clk
0:02:58.5]} 11... Rxe4 {[%clk 0:03:08.3]} 12. Ra3 {[%clk 0:02:58.6]} 12... Na6
{[%clk 0:03:07.7]} 13. Bd3 {[%clk 0:02:56.3]} 13... Re8 {[%clk 0:03:08.1]} 14.
Bg5 {[%clk 0:02:55]} 14... Bf6 {[%clk 0:03:06.1]} 15. Bxf6 {[%clk 0:02:52]}
15... Qxf6 {[%clk 0:03:08]} 16. Bb5 {[%clk 0:02:51.8]} 16... Re7 {[%clk
0:03:07.3]} 17. c3 {[%clk 0:02:34.3]} 17... Nc7 {[%clk 0:02:50]} 18. Bc4 {[%clk
0:02:33.3]} 18... b6 {[%clk 0:02:50.2]} 19. Qd3 {[%clk 0:02:21]} 19... Bf5
{[%clk 0:02:48.6]} 20. Qd2 {[%clk 0:02:19.6]} 20... Bxh3 {[%clk 0:02:48.8]} 21.
a5 {[%clk 0:02:18.6]} 21... b5 {[%clk 0:02:48.8]} 22. Ba2 {[%clk 0:02:18.7]}
22... Re4 {[%clk 0:02:41.1]} 23. Ng5 {[%clk 0:02:07.1]} 23... Bxg2 {[%clk
0:02:36.7]} 24. Nxe4 {[%clk 0:02:05.8]} 24... Bxe4 {[%clk 0:02:21.7]} 25. c4
{[%clk 0:02:04.7]} 25... bxc4 {[%clk 0:02:18.6]} 26. Bxc4 {[%clk 0:02:03.7]}
26... Re8 {[%clk 0:02:16.7]} 27. Re3 {[%clk 0:02:03.4]} 27... Re5 {[%clk
0:02:16.7]} 28. Rfe1 {[%clk 0:02:04.1]} 28... Rg5+ {[%clk 0:02:04.9]} 29. Rg3
{[%clk 0:02:01.7]} 29... Qf3 {[%clk 0:02:03.9]} 30. Rxe4 {[%clk 0:01:59.6]}
30... Rxg3+ {[%clk 0:02:02.6]} 31. fxg3 {[%clk 0:02:00.4]} 31... Qxe4 {[%clk
0:02:03.3]} 32. Ba2 {[%clk 0:01:56.6]} 32... c4 {[%clk 0:02:02.5]} 33. Qf2
{[%clk 0:01:49.1]} 33... Nxd5 {[%clk 0:01:59.6]} 34. Qxa7 {[%clk 0:01:48.2]}
34... Ne3 {[%clk 0:02:00.4]} 35. Qa8+ {[%clk 0:01:28.4]} 35... Qxa8 {[%clk
0:02:00.1]} 0-1

[Event "*** Titled Tuesday Blitz"]
[Site "Chess.com"]
[Date "2019.06.04"]
[Round "7"]
[White "riconaipe"]
[Black "vladimirdamjanovic"]
[Result "0-1"]
[WhiteElo "2571"]
[BlackElo "2506"]
[TimeControl "180+2"]
[EndTime "14:32:03 PDT"]
[Termination "vladimirdamjanovic won by resignation"]

1. d4 {[%clk 0:03:01.9]} 1... Nf6 {[%clk 0:03:00.6]} 2. c4 {[%clk 0:03:02.9]}
2... c5 {[%clk 0:03:01.9]} 3. d5 {[%clk 0:03:03.8]} 3... b5 {[%clk 0:03:03.1]}
4. f3 {[%clk 0:03:04.9]} 4... d6 {[%clk 0:03:02.6]} 5. e4 {[%clk 0:03:06.1]}
5... g6 {[%clk 0:03:04]} 6. cxb5 {[%clk 0:03:06.4]} 6... a6 {[%clk 0:03:05.2]}
7. Nc3 {[%clk 0:03:07.7]} 7... Bg7 {[%clk 0:03:06.2]} 8. Be3 {[%clk 0:03:05.7]}
8... O-O {[%clk 0:03:06.9]} 9. Qd2 {[%clk 0:03:06.9]} 9... Nbd7 {[%clk
0:03:02.9]} 10. a4 {[%clk 0:03:05.2]} 10... Qa5 {[%clk 0:03:00.8]} 11. Nh3
{[%clk 0:03:00.2]} 11... Nb6 {[%clk 0:02:55.4]} 12. Nf2 {[%clk 0:02:56]} 12...
axb5 {[%clk 0:02:54]} 13. Bxb5 {[%clk 0:02:56.6]} 13... Ba6 {[%clk 0:02:53.9]}
14. Bxa6 {[%clk 0:02:42.6]} 14... Qxa6 {[%clk 0:02:45.2]} 15. b3 {[%clk
0:02:41.7]} 15... Rfb8 {[%clk 0:02:41.2]} 16. Nfd1 {[%clk 0:02:30.7]} 16... Nfd7
{[%clk 0:02:23.9]} 17. Kf2 {[%clk 0:02:27.3]} 17... Ne5 {[%clk 0:02:24.6]} 18.
g3 {[%clk 0:02:18.5]} 18... c4 {[%clk 0:02:14.6]} 19. a5 {[%clk 0:01:57]} 19...
cxb3 {[%clk 0:02:04.7]} 20. Bxb6 {[%clk 0:01:52.3]} 20... Rxb6 {[%clk
0:01:56.5]} 21. axb6 {[%clk 0:01:51.9]} 21... Qxa1 {[%clk 0:01:55.7]} 22. Kg2
{[%clk 0:01:43.8]} 22... Nc4 {[%clk 0:01:38.1]} 23. Ne3 {[%clk 0:01:26.5]} 23...
Qxh1+ {[%clk 0:01:24]} 24. Kxh1 {[%clk 0:01:26.3]} 24... Nxd2 {[%clk 0:01:25.5]}
25. Na4 {[%clk 0:01:25.4]} 25... Rxa4 {[%clk 0:01:20.8]} 26. b7 {[%clk
0:01:25.6]} 26... Rb4 {[%clk 0:01:21.1]} 0-1

[Event "*** Titled Tuesday Blitz"]
[Site "Chess.com"]
[Date "2019.06.04"]
[Round "7"]
[White "Rish_97"]
[Black "irregularity"]
[Result "1-0"]
[WhiteElo "2498"]
[BlackElo "2593"]
[TimeControl "180+2"]
[EndTime "14:32:08 PDT"]
[Termination "Rish_97 won by resignation"]

1. Nf3 {[%clk 0:03:01.9]} 1... Nf6 {[%clk 0:03:00.8]} 2. g3 {[%clk 0:03:02.6]}
2... d6 {[%clk 0:03:02.7]} 3. d4 {[%clk 0:03:01.5]} 3... g6 {[%clk 0:03:04.6]}
4. b3 {[%clk 0:03:02.9]} 4... Bg7 {[%clk 0:03:06.5]} 5. Bb2 {[%clk 0:03:04.4]}
5... O-O {[%clk 0:03:08.4]} 6. Bg2 {[%clk 0:03:05.7]} 6... b6 {[%clk 0:03:09.9]}
7. Ne5 {[%clk 0:02:56.8]} 7... d5 {[%clk 0:02:48.1]} 8. c4 {[%clk 0:02:57.3]}
8... Bb7 {[%clk 0:02:47.1]} 9. Nc3 {[%clk 0:02:57.3]} 9... c6 {[%clk 0:02:47.6]}
10. O-O {[%clk 0:02:49.9]} 10... Nbd7 {[%clk 0:02:48.6]} 11. cxd5 {[%clk
0:02:49.3]} 11... cxd5 {[%clk 0:02:49.6]} 12. Rc1 {[%clk 0:02:49.7]} 12... e6
{[%clk 0:02:46.3]} 13. Nb5 {[%clk 0:02:35.3]} 13... Nxe5 {[%clk 0:02:46.2]} 14.
dxe5 {[%clk 0:02:36.2]} 14... Nd7 {[%clk 0:02:47.4]} 15. f4 {[%clk 0:02:27.4]}
15... Ba6 {[%clk 0:02:42.5]} 16. Nc7 {[%clk 0:02:26.8]} 16... Bb7 {[%clk
0:02:38.2]} 17. Nxa8 {[%clk 0:02:26.7]} 17... Qxa8 {[%clk 0:02:40.1]} 18. b4
{[%clk 0:02:23.6]} 18... Rd8 {[%clk 0:02:41.1]} 19. Qd2 {[%clk 0:02:21.1]} 19...
Bf8 {[%clk 0:02:41.7]} 20. Rc7 {[%clk 0:02:20.4]} 20... a5 {[%clk 0:02:42.4]}
21. a3 {[%clk 0:02:18.1]} 21... Nb8 {[%clk 0:02:38]} 22. b5 {[%clk 0:02:10.8]}
22... Nd7 {[%clk 0:02:37.4]} 23. Rcc1 {[%clk 0:02:09.3]} 23... Nc5 {[%clk
0:02:38.4]} 24. Qd1 {[%clk 0:01:53.6]} 24... a4 {[%clk 0:02:31.5]} 25. e3 {[%clk
0:01:46.1]} 25... Qa5 {[%clk 0:02:30.1]} 26. Qe2 {[%clk 0:01:45.3]} 26... Bc8
{[%clk 0:02:28.7]} 27. Bc3 {[%clk 0:01:44.5]} 27... Qa8 {[%clk 0:02:29.4]} 28.
Bb4 {[%clk 0:01:45.8]} 28... Bd7 {[%clk 0:02:30.8]} 29. Rc2 {[%clk 0:01:44.3]}
29... Rc8 {[%clk 0:02:31.1]} 30. Rfc1 {[%clk 0:01:43.9]} 30... Rc7 {[%clk
0:02:32.5]} 31. h4 {[%clk 0:01:43.3]} 31... Qe8 {[%clk 0:02:32.5]} 32. Bf1
{[%clk 0:01:43.5]} 32... Rb7 {[%clk 0:02:32.7]} 33. h5 {[%clk 0:01:42.6]} 33...
Ra7 {[%clk 0:02:31]} 34. hxg6 {[%clk 0:01:41.2]} 34... hxg6 {[%clk 0:02:32]} 35.
Qh2 {[%clk 0:01:40.9]} 35... Nb3 {[%clk 0:02:30.3]} 36. Bxf8 {[%clk 0:01:38.7]}
36... Nxc1 {[%clk 0:02:29.5]} 37. Bh6 {[%clk 0:01:39.5]} 37... Nb3 {[%clk
0:02:22.3]} 38. Bg5 {[%clk 0:01:40.3]} 1-0

[Event "*** Titled Tuesday Blitz"]
[Site "Chess.com"]
[Date "2019.06.04"]
[Round "7"]
[White "GHANDEEVAM2003"]
[Black "rasmussvane"]
[Result "0-1"]
[WhiteElo "2931"]
[BlackElo "2896"]
[TimeControl "180+2"]
[EndTime "14:32:42 PDT"]
[Termination "rasmussvane won by resignation"]

1. Nf3 {[%clk 0:03:01.9]} 1... d5 {[%clk 0:03:00.5]} 2. c4 {[%clk 0:03:01.8]}
2... c6 {[%clk 0:02:59.4]} 3. e3 {[%clk 0:03:01.7]} 3... Nf6 {[%clk 0:03:00.3]}
4. Nc3 {[%clk 0:03:01.6]} 4... a6 {[%clk 0:03:01.7]} 5. b3 {[%clk 0:03:01]} 5...
Bf5 {[%clk 0:03:01.9]} 6. Bb2 {[%clk 0:03:00.4]} 6... h6 {[%clk 0:03:02.2]} 7.
Be2 {[%clk 0:02:57.3]} 7... e6 {[%clk 0:03:03.2]} 8. O-O {[%clk 0:02:58.1]} 8...
Bd6 {[%clk 0:03:04.3]} 9. a3 {[%clk 0:02:52.9]} 9... O-O {[%clk 0:03:04.7]} 10.
b4 {[%clk 0:02:54.2]} 10... Nbd7 {[%clk 0:03:00.5]} 11. d4 {[%clk 0:02:52.3]}
11... dxc4 {[%clk 0:02:50]} 12. Bxc4 {[%clk 0:02:52.4]} 12... e5 {[%clk
0:02:45.4]} 13. dxe5 {[%clk 0:02:40.7]} 13... Nxe5 {[%clk 0:02:46.1]} 14. Be2
{[%clk 0:02:41.5]} 14... Qc7 {[%clk 0:02:31]} 15. h3 {[%clk 0:02:40.1]} 15...
Rad8 {[%clk 0:02:30.8]} 16. Qb3 {[%clk 0:02:38]} 16... Qc8 {[%clk 0:01:55.5]}
17. Rfd1 {[%clk 0:02:00.8]} 17... Bxh3 {[%clk 0:01:30]} 18. Rxd6 {[%clk
0:01:36.2]} 18... Nxf3+ {[%clk 0:01:30.5]} 19. Bxf3 {[%clk 0:01:38.1]} 19...
Rxd6 {[%clk 0:01:32]} 20. gxh3 {[%clk 0:01:39.6]} 20... Qxh3 {[%clk 0:01:33.8]}
21. Bg2 {[%clk 0:01:41.1]} 21... Qh4 {[%clk 0:01:34.3]} 22. Ne2 {[%clk
0:01:36.6]} 22... Ng4 {[%clk 0:01:31.8]} 23. Ng3 {[%clk 0:01:22.5]} 23... Rd2
{[%clk 0:01:04.8]} 24. Ne4 {[%clk 0:01:23.4]} 24... Rxf2 {[%clk 0:01:02.1]} 25.
Nxf2 {[%clk 0:01:20.9]} 25... Qxf2+ {[%clk 0:01:03.2]} 26. Kh1 {[%clk
0:01:22.4]} 26... Qg3 {[%clk 0:00:59.2]} 27. Kg1 {[%clk 0:01:22]} 27... Nxe3
{[%clk 0:00:58.3]} 0-1

[Event "*** Titled Tuesday Blitz"]
[Site "Chess.com"]
[Date "2019.06.04"]
[Round "7"]
[White "Zq1"]
[Black "Barcelona_Guy"]
[Result "1-0"]
[WhiteElo "2539"]
[BlackElo "2674"]
[TimeControl "180+2"]
[EndTime "14:32:59 PDT"]
[Termination "Zq1 won by resignation"]

1. d4 {[%clk 0:03:01.9]} 1... Nf6 {[%clk 0:02:55.3]} 2. c4 {[%clk 0:03:02.8]}
2... e6 {[%clk 0:02:56]} 3. Nc3 {[%clk 0:03:03.3]} 3... d5 {[%clk 0:02:57.1]} 4.
Bg5 {[%clk 0:03:01.7]} 4... Be7 {[%clk 0:02:57.2]} 5. e3 {[%clk 0:03:02.4]} 5...
Nbd7 {[%clk 0:02:58.8]} 6. Rc1 {[%clk 0:03:00.6]} 6... h6 {[%clk 0:02:59]} 7.
Bh4 {[%clk 0:03:00.8]} 7... O-O {[%clk 0:03:00.4]} 8. cxd5 {[%clk 0:02:59.6]}
8... exd5 {[%clk 0:03:01.1]} 9. Bd3 {[%clk 0:02:59.4]} 9... c6 {[%clk 0:03:01]}
10. Nge2 {[%clk 0:02:59.3]} 10... Re8 {[%clk 0:02:59.4]} 11. O-O {[%clk
0:02:59.1]} 11... Ne4 {[%clk 0:02:57.8]} 12. Bxe7 {[%clk 0:02:53.4]} 12... Qxe7
{[%clk 0:02:59.7]} 13. Nxe4 {[%clk 0:02:51.3]} 13... dxe4 {[%clk 0:03:00.2]} 14.
Bc4 {[%clk 0:02:50.2]} 14... Nf6 {[%clk 0:02:53.3]} 15. a3 {[%clk 0:02:47]}
15... h5 {[%clk 0:02:54.2]} 16. h3 {[%clk 0:02:44.1]} 16... h4 {[%clk
0:02:54.8]} 17. Nf4 {[%clk 0:02:40.7]} 17... Bf5 {[%clk 0:02:51.6]} 18. Ba2
{[%clk 0:02:29.9]} 18... Rad8 {[%clk 0:02:49.9]} 19. b4 {[%clk 0:02:25.2]} 19...
g5 {[%clk 0:02:48.6]} 20. Nh5 {[%clk 0:02:12.7]} 20... Bg6 {[%clk 0:02:47.8]}
21. Nxf6+ {[%clk 0:02:12.4]} 21... Qxf6 {[%clk 0:02:49.7]} 22. Rc5 {[%clk
0:02:06.3]} 22... b6 {[%clk 0:02:46.6]} 23. Rc3 {[%clk 0:02:03.8]} 23... Kg7
{[%clk 0:02:42.1]} 24. Qc2 {[%clk 0:02:03.1]} 24... Rd6 {[%clk 0:02:41.3]} 25.
Rc1 {[%clk 0:02:03.5]} 25... g4 {[%clk 0:02:41.6]} 26. hxg4 {[%clk 0:01:58.4]}
26... h3 {[%clk 0:02:42.5]} 27. Rxc6 {[%clk 0:01:52.4]} 27... hxg2 {[%clk
0:02:30.4]} 28. Rxd6 {[%clk 0:01:47.8]} 28... Qh4 {[%clk 0:02:15.5]} 29. Kxg2
{[%clk 0:01:12.3]} 29... Rh8 {[%clk 0:02:15]} 30. Rxg6+ {[%clk 0:00:46.2]} 30...
fxg6 {[%clk 0:02:11.9]} 31. Qc7+ {[%clk 0:00:44.5]} 31... Kh6 {[%clk 0:01:29.1]}
1-0

[Event "*** Titled Tuesday Blitz"]
[Site "Chess.com"]
[Date "2019.06.04"]
[Round "7"]
[White "TristanCalistri"]
[Black "SamCopeland"]
[Result "0-1"]
[WhiteElo "2257"]
[BlackElo "2122"]
[TimeControl "180+2"]
[EndTime "14:33:07 PDT"]
[Termination "SamCopeland won on time"]

1. e4 {[%clk 0:03:01.9]} 1... Nf6 {[%clk 0:03:00.8]} 2. e5 {[%clk 0:03:00.3]}
2... Nd5 {[%clk 0:03:01.6]} 3. Nc3 {[%clk 0:03:01.9]} 3... Nxc3 {[%clk
0:03:01.5]} 4. bxc3 {[%clk 0:03:03.8]} 4... d6 {[%clk 0:03:03.1]} 5. f4 {[%clk
0:03:04.3]} 5... g6 {[%clk 0:02:49]} 6. d4 {[%clk 0:03:05.2]} 6... Bg7 {[%clk
0:02:49.5]} 7. Bd3 {[%clk 0:03:05.9]} 7... O-O {[%clk 0:02:49.3]} 8. Nf3 {[%clk
0:03:06.5]} 8... c5 {[%clk 0:02:43.7]} 9. O-O {[%clk 0:03:07]} 9... Bg4 {[%clk
0:02:19]} 10. Qe1 {[%clk 0:03:06.7]} 10... Bxf3 {[%clk 0:02:14.7]} 11. Rxf3
{[%clk 0:03:07.2]} 11... cxd4 {[%clk 0:02:15.7]} 12. cxd4 {[%clk 0:03:07.7]}
12... dxe5 {[%clk 0:02:17.1]} 13. dxe5 {[%clk 0:03:07.4]} 13... Nc6 {[%clk
0:02:13.2]} 14. Rb1 {[%clk 0:03:01.1]} 14... Qd7 {[%clk 0:02:04.6]} 15. Kh1
{[%clk 0:02:31.9]} 15... Rac8 {[%clk 0:01:59]} 16. Rf1 {[%clk 0:01:32.7]} 16...
Rfd8 {[%clk 0:01:49.4]} 17. Qf2 {[%clk 0:01:08.4]} 17... b6 {[%clk 0:01:35.2]}
18. Ba3 {[%clk 0:00:46.6]} 18... e6 {[%clk 0:01:03]} 0-1

[Event "*** Titled Tuesday Blitz"]
[Site "Chess.com"]
[Date "2019.06.04"]
[Round "7"]
[White "PotapovaM"]
[Black "albi1999"]
[Result "1-0"]
[WhiteElo "2516"]
[BlackElo "2442"]
[TimeControl "180+2"]
[EndTime "14:33:14 PDT"]
[Termination "PotapovaM won by resignation"]

1. d4 {[%clk 0:03:01.9]} 1... d5 {[%clk 0:02:59.1]} 2. c4 {[%clk 0:03:02.5]}
2... e6 {[%clk 0:02:59.7]} 3. Nc3 {[%clk 0:03:02.3]} 3... Nf6 {[%clk 0:03:01.2]}
4. Nf3 {[%clk 0:02:58.6]} 4... Bb4 {[%clk 0:03:01]} 5. Qa4+ {[%clk 0:02:59.1]}
5... Nc6 {[%clk 0:03:01.6]} 6. e3 {[%clk 0:03:00.4]} 6... O-O {[%clk 0:03:01.4]}
7. Qc2 {[%clk 0:03:01.5]} 7... Re8 {[%clk 0:03:02]} 8. Bd2 {[%clk 0:03:01.9]}
8... a6 {[%clk 0:03:00.4]} 9. a3 {[%clk 0:02:52.3]} 9... Bf8 {[%clk 0:03:00.8]}
10. Rd1 {[%clk 0:02:45.4]} 10... h6 {[%clk 0:02:47.5]} 11. Be2 {[%clk
0:02:36.6]} 11... dxc4 {[%clk 0:02:46.4]} 12. Bxc4 {[%clk 0:02:35.7]} 12... e5
{[%clk 0:02:42.9]} 13. dxe5 {[%clk 0:02:14.4]} 13... Nxe5 {[%clk 0:02:44.8]} 14.
Nxe5 {[%clk 0:02:12.8]} 14... Rxe5 {[%clk 0:02:46.7]} 15. O-O {[%clk 0:02:14.4]}
15... b5 {[%clk 0:02:43.8]} 16. Ba2 {[%clk 0:02:03.6]} 16... Bb7 {[%clk
0:02:39.3]} 17. f3 {[%clk 0:02:04.5]} 17... Bc5 {[%clk 0:02:38.4]} 18. Kh1
{[%clk 0:02:05.6]} 18... Nh5 {[%clk 0:02:34]} 19. Qg6 {[%clk 0:01:18.3]} 19...
Bd5 {[%clk 0:01:59.2]} 20. Bxd5 {[%clk 0:00:20.7]} 20... Rxd5 {[%clk 0:01:59.4]}
21. Qc6 {[%clk 0:00:21.9]} 21... Rxd2 {[%clk 0:01:47.2]} 22. Rxd2 {[%clk
0:00:22.3]} 22... Qxd2 {[%clk 0:01:49.1]} 23. Qxa8+ {[%clk 0:00:21.1]} 23... Kh7
{[%clk 0:01:50.4]} 24. Qe4+ {[%clk 0:00:20.5]} 24... g6 {[%clk 0:01:50.9]} 25.
Qd5 {[%clk 0:00:18.2]} 25... Qxe3 {[%clk 0:01:48.7]} 26. Qxf7+ {[%clk
0:00:17.7]} 26... Ng7 {[%clk 0:01:50]} 27. Nd5 {[%clk 0:00:18.6]} 27... Qe6
{[%clk 0:01:46.7]} 28. Nf6+ {[%clk 0:00:14.1]} 28... Kh8 {[%clk 0:01:48]} 29.
Qxg6 {[%clk 0:00:15.5]} 29... Qf5 {[%clk 0:01:49.4]} 30. Qf7 {[%clk 0:00:12]}
30... Qe6 {[%clk 0:01:47.3]} 31. Qg6 {[%clk 0:00:10.7]} 31... Qf5 {[%clk
0:01:48.4]} 32. Qxh6+ {[%clk 0:00:11.7]} 1-0

[Event "*** Titled Tuesday Blitz"]
[Site "Chess.com"]
[Date "2019.06.04"]
[Round "7"]
[White "oogee"]
[Black "26andrej26"]
[Result "0-1"]
[WhiteElo "2325"]
[BlackElo "2500"]
[TimeControl "180+2"]
[EndTime "14:33:16 PDT"]
[Termination "26andrej26 won by resignation"]

1. d4 {[%clk 0:03:01.9]} 1... Nf6 {[%clk 0:03:01.2]} 2. c4 {[%clk 0:03:02.6]}
2... g6 {[%clk 0:03:02.2]} 3. Nc3 {[%clk 0:03:02.5]} 3... Bg7 {[%clk 0:03:04.1]}
4. e4 {[%clk 0:03:02.6]} 4... d6 {[%clk 0:03:06]} 5. Nf3 {[%clk 0:03:03.9]} 5...
O-O {[%clk 0:03:07.9]} 6. Be2 {[%clk 0:03:05.4]} 6... e5 {[%clk 0:03:09.6]} 7.
O-O {[%clk 0:03:06.7]} 7... Nc6 {[%clk 0:03:10.5]} 8. d5 {[%clk 0:03:07.5]} 8...
Ne7 {[%clk 0:03:12]} 9. Ne1 {[%clk 0:03:07.3]} 9... Nd7 {[%clk 0:03:12.9]} 10.
Be3 {[%clk 0:03:06.4]} 10... f5 {[%clk 0:03:14.4]} 11. f3 {[%clk 0:03:06.9]}
11... f4 {[%clk 0:03:16.3]} 12. Bf2 {[%clk 0:03:07.8]} 12... g5 {[%clk
0:03:18.2]} 13. a4 {[%clk 0:03:08.1]} 13... a6 {[%clk 0:03:17.5]} 14. a5 {[%clk
0:03:02.7]} 14... Rf6 {[%clk 0:03:18.3]} 15. Nd3 {[%clk 0:02:53]} 15... Rh6
{[%clk 0:03:16.9]} 16. Be1 {[%clk 0:02:45.8]} 16... Qe8 {[%clk 0:03:18.1]} 17.
Nf2 {[%clk 0:02:42.6]} 17... Qh5 {[%clk 0:03:11.2]} 18. h3 {[%clk 0:02:41.4]}
18... Ng6 {[%clk 0:03:10.7]} 19. Ng4 {[%clk 0:02:31.9]} 19... Nf6 {[%clk
0:03:11.6]} 20. Nxh6+ {[%clk 0:02:29.7]} 20... Qxh6 {[%clk 0:03:11.5]} 21. Rf2
{[%clk 0:02:19.3]} 21... Nh4 {[%clk 0:03:06.6]} 22. Bf1 {[%clk 0:02:17.2]} 22...
Bd7 {[%clk 0:03:02.5]} 23. c5 {[%clk 0:02:03.3]} 23... Kh8 {[%clk 0:02:43.4]}
24. Qb3 {[%clk 0:02:00.3]} 24... Rg8 {[%clk 0:02:40.5]} 25. Qxb7 {[%clk
0:01:47.9]} 25... g4 {[%clk 0:02:39.8]} 26. fxg4 {[%clk 0:01:38.4]} 26... Bxg4
{[%clk 0:02:33.7]} 27. hxg4 {[%clk 0:01:32.7]} 27... Nxg4 {[%clk 0:02:33.5]} 28.
Ra3 {[%clk 0:01:09.2]} 28... Ng6 {[%clk 0:01:54.8]} 29. g3 {[%clk 0:01:08.7]}
29... fxg3 {[%clk 0:01:54.7]} 30. Rc2 {[%clk 0:01:01.7]} 30... Qe3+ {[%clk
0:01:45.4]} 31. Kg2 {[%clk 0:00:56.7]} 31... Nf4+ {[%clk 0:01:41.1]} 32. Kh1
{[%clk 0:00:51.7]} 32... Qxe1 {[%clk 0:01:31.6]} 33. Qxa6 {[%clk 0:00:49.6]}
33... g2+ {[%clk 0:01:32.6]} 34. Rxg2 {[%clk 0:00:49.5]} 34... Nxg2 {[%clk
0:01:32.3]} 35. Kxg2 {[%clk 0:00:50.6]} 35... Qf2+ {[%clk 0:01:25.5]} 36. Kh3
{[%clk 0:00:49.9]} 0-1

[Event "*** Titled Tuesday Blitz"]
[Site "Chess.com"]
[Date "2019.06.04"]
[Round "7"]
[White "Naruto-K"]
[Black "GelmanAlexander"]
[Result "0-1"]
[WhiteElo "2409"]
[BlackElo "2604"]
[TimeControl "180+2"]
[EndTime "14:33:25 PDT"]
[Termination "GelmanAlexander won by resignation"]

1. Nf3 {[%clk 0:02:57.2]} 1... f5 {[%clk 0:03:00.3]} 2. d4 {[%clk 0:02:52.6]}
2... Nf6 {[%clk 0:03:00.9]} 3. Bf4 {[%clk 0:02:54.2]} 3... g6 {[%clk 0:03:01.5]}
4. e3 {[%clk 0:02:54.3]} 4... d6 {[%clk 0:03:02.6]} 5. h3 {[%clk 0:02:55.1]}
5... Bg7 {[%clk 0:03:03.9]} 6. Bd3 {[%clk 0:02:55.4]} 6... O-O {[%clk
0:03:04.9]} 7. c4 {[%clk 0:02:56.5]} 7... Nc6 {[%clk 0:02:51.5]} 8. Nc3 {[%clk
0:02:56.3]} 8... Qe8 {[%clk 0:02:47.1]} 9. Bh2 {[%clk 0:02:54.8]} 9... e5 {[%clk
0:02:47.5]} 10. Be2 {[%clk 0:02:56.2]} 10... Ne4 {[%clk 0:02:41.8]} 11. Nd5
{[%clk 0:02:51.5]} 11... Qf7 {[%clk 0:02:40.1]} 12. Rc1 {[%clk 0:02:36.1]} 12...
h6 {[%clk 0:02:13.2]} 13. b4 {[%clk 0:02:21.4]} 13... f4 {[%clk 0:01:56.2]} 14.
b5 {[%clk 0:02:17.9]} 14... Nxf2 {[%clk 0:01:45.2]} 15. Kxf2 {[%clk 0:02:14.1]}
15... fxe3+ {[%clk 0:01:44.2]} 16. Ke1 {[%clk 0:01:36.4]} 16... Nxd4 {[%clk
0:01:40.1]} 17. Nxe3 {[%clk 0:01:36.5]} 17... e4 {[%clk 0:01:29.3]} 18. Nxd4
{[%clk 0:01:28.9]} 18... Qf2+ {[%clk 0:01:29.8]} 19. Kd2 {[%clk 0:01:30.1]}
19... Bxd4 {[%clk 0:01:27.3]} 20. Ng4 {[%clk 0:01:16.9]} 20... Bxg4 {[%clk
0:01:20.5]} 21. hxg4 {[%clk 0:01:15.7]} 21... Qe3+ {[%clk 0:01:20.2]} 22. Ke1
{[%clk 0:01:06.3]} 22... Rf2 {[%clk 0:00:55.8]} 23. Rc2 {[%clk 0:00:47]} 23...
Raf8 {[%clk 0:00:50.7]} 24. Qd2 {[%clk 0:00:33.1]} 24... Rf1+ {[%clk 0:00:47.8]}
0-1

[Event "*** Titled Tuesday Blitz"]
[Site "Chess.com"]
[Date "2019.06.04"]
[Round "7"]
[White "chorejason"]
[Black "quesfr"]
[Result "1-0"]
[WhiteElo "2246"]
[BlackElo "2161"]
[TimeControl "180+2"]
[EndTime "14:33:27 PDT"]
[Termination "chorejason won on time"]

1. e4 {[%clk 0:03:01.9]} 1... e5 {[%clk 0:03:00]} 2. d4 {[%clk 0:03:00.9]} 2...
exd4 {[%clk 0:02:59.8]} 3. c3 {[%clk 0:03:02.5]} 3... d5 {[%clk 0:02:56.3]} 4.
exd5 {[%clk 0:03:03.2]} 4... Qxd5 {[%clk 0:02:55.1]} 5. cxd4 {[%clk 0:03:04.8]}
5... Nc6 {[%clk 0:02:56.3]} 6. Nf3 {[%clk 0:03:03.9]} 6... Bg4 {[%clk
0:02:50.8]} 7. Be2 {[%clk 0:03:03.6]} 7... O-O-O {[%clk 0:02:46.6]} 8. O-O
{[%clk 0:03:03.1]} 8... Bxf3 {[%clk 0:02:37.9]} 9. Bxf3 {[%clk 0:03:00.2]} 9...
Qxd4 {[%clk 0:02:39.2]} 10. Qb3 {[%clk 0:02:43.9]} 10... Qf6 {[%clk 0:01:53]}
11. Nc3 {[%clk 0:02:24.6]} 11... Nh6 {[%clk 0:01:09]} 12. Be3 {[%clk 0:01:56.2]}
12... Nf5 {[%clk 0:01:06.8]} 13. Bxa7 {[%clk 0:01:48]} 13... b6 {[%clk 0:00:14]}
14. Bxb6 {[%clk 0:01:12.6]} 14... Ne5 {[%clk 0:00:15]} 15. Bxc7 {[%clk
0:00:55.5]} 15... Nxf3+ {[%clk 0:00:15.8]} 16. gxf3 {[%clk 0:00:56.5]} 16...
Kxc7 {[%clk 0:00:05.5]} 17. Nd5+ {[%clk 0:00:52.1]} 17... Rxd5 {[%clk
0:00:06.6]} 18. Qxd5 {[%clk 0:00:54]} 18... Nh4 {[%clk 0:00:04]} 19. Rfc1+
{[%clk 0:00:54.3]} 19... Kb8 {[%clk 0:00:04.2]} 20. Qb5+ {[%clk 0:00:52.2]} 1-0